bitfinex-derivatives/quotes_SOLF0:USTF0_20240918
["timestamp","ask_amount","ask_price","bid_price","bid_amount"]
[1726700526389,14.3355,131.72,131.64,4.3206]
[1726700526594,14.3355,131.72,131.67,10.54]
[1726700527001,14.3355,131.72,131.68,3.7963]
[1726700527202,18.1226203,131.72,131.68,3.7963]
[1726700529300,3.7871203,131.72,131.69,14.3362]
[1726700529499,14.3352,131.73,131.69,14.3362]
[1726700530006,18.06897014,131.73,131.69,14.3362]
[1726700530200,2.9291,131.78,131.72,10.54]
[1726700530397,10.54,131.77,131.72,10.54]
[1726700530593,3.7946,131.75,131.71,10.54]
[1726700531295,7.53216771,131.75,131.71,10.54]
[1726700531594,7.53216771,131.75,131.71,14.3355]
[1726700532002,3.73756771,131.75,131.74,10.54]
[1726700532203,10.54,131.78,131.74,10.54]
[1726700532405,14.39668598,131.78,131.74,10.54]
[1726700532596,3.7941,131.77,131.74,10.54]
[1726700532905,14.39668598,131.78,131.74,10.54]
[1726700533493,10.54,131.75,131.71,3.7954]
[1726700533794,10.54,131.73,131.69,10.54]
[1726700533998,14.3351,131.73,131.69,10.54]
[1726700534202,3.80012074,131.72,131.7,10.54]
[1726700534404,10.54,131.75,131.71,10.54]
[1726700534596,3.7976606,131.74,131.72,3.7953]
[1726700534795,1.4654,131.81,131.73,10.54]
[1726700535001,10.54,131.8,131.76,10.54]
[1726700535801,3.7935,131.79,131.76,10.54]
[1726700536002,7.56647827,131.79,131.76,10.54]
[1726700536397,7.56647827,131.79,131.76,14.3341]
[1726700536599,7.56647827,131.79,131.76,10.54]
[1726700537105,3.7939,131.77,131.74,10.54]
[1726700537308,14.3339,131.77,131.72,10.54]
[1726700538204,14.3342,131.76,131.65,153.3765]
[1726700538500,10.54,131.76,131.72,10.54]
[1726700538694,10.54,131.76,131.73,10.54]
[1726700539504,14.3343,131.76,131.73,10.54]
[1726700539810,10.54,131.76,131.71,10.54]
[1726700540502,3.7945,131.75,131.71,14.3354]
[1726700540902,10.54,131.76,131.71,14.3354]
[1726700541103,10.54,131.75,131.69,3.7961]
[1726700541306,10.54,131.74,131.69,14.3361]
[1726700541696,1.3836,131.8,131.72,10.54]
[1726700542010,10.54,131.77,131.72,10.54]
[1726700542208,3.7944,131.76,131.72,10.54]
[1726700543812,3.7944,131.76,131.72,14.3352]
[1726700546716,18.14257266,131.77,131.73,14.335]
[1726700547618,3.7942,131.76,131.73,14.335]
[1726700548717,3.7942,131.76,131.73,10.54]
[1726700549312,18.14247266,131.77,131.73,14.335]
[1726700549712,14.34847266,131.77,131.73,10.54]
[1726700549918,3.80847266,131.77,131.74,10.54]
[1726700550224,10.54,131.79,131.74,10.54]
[1726700550417,14.3337,131.78,131.74,14.3346]
[1726700550624,14.32341691,131.78,131.74,14.3346]
[1726700551025,14.32341691,131.78,131.75,3.7944]
[1726700551026,7.57711691,131.78,131.75,3.7944]
[1726700552026,3.78341691,131.78,131.75,10.54]
[1726700552215,14.3334,131.79,131.75,10.54]
[1726700552617,18.06072105,131.79,131.75,10.54]
[1726700553422,7.52072105,131.79,131.75,10.54]
[1726700553822,7.52072105,131.79,131.76,3.7941]
[1726700554719,3.72732105,131.79,131.77,10.54]
[1726700554917,2.8136,131.85,131.78,10.54]
[1726700554918,10.54,131.82,131.78,10.54]
[1726700555130,2.8136,131.85,131.79,3.793]
[1726700555131,14.3323,131.83,131.79,3.793]
[1726700555722,10.54,131.83,131.79,3.793]
[1726700556118,3.7925,131.82,131.79,3.793]
[1726700557823,10.54,131.81,131.76,10.54]
[1726700558016,10.54,131.79,131.75,10.54]
[1726700558322,14.29740838,131.79,131.76,3.7941]
[1726700558914,3.75740838,131.79,131.76,3.7941]
[1726700559217,14.3332,131.8,131.76,3.7941]
[1726700560223,3.7933,131.79,131.76,3.7941]
[1726700560425,7.68174848,131.79,131.76,3.7941]
[1726700560929,14.3338,131.78,131.7,4.3239]
[1726700561226,10.54,131.77,131.73,10.54]
[1726700561426,14.3339,131.77,131.73,14.3348]
[1726700561620,18.16048249,131.77,131.73,14.3348]
[1726700561823,10.54,131.76,131.72,10.54]
[1726700562030,14.334,131.77,131.73,14.3348]
[1726700562330,18.14957565,131.77,131.73,14.3348]
[1726700565937,3.81557565,131.77,131.74,10.54]
[1726700566140,14.3338,131.78,131.74,10.54]
[1726700566637,18.03730205,131.78,131.74,10.54]
[1726700567836,18.03730205,131.78,131.74,14.3346]
[1726700580548,14.3339,131.77,131.74,3.7946]
[1726700581156,14.3339,131.77,131.73,14.3349]
[1726700582852,3.70350205,131.78,131.73,14.3349]
[1726700582853,7.49720205,131.78,131.74,3.7947]
[1726700583047,3.7937,131.78,131.74,3.7947]
[1726700583249,14.3337,131.78,131.74,3.7947]
[1726700583656,18.21409309,131.78,131.74,3.7947]
[1726700583845,18.21409309,131.78,131.74,14.3347]
[1726700585354,10.54,131.76,131.7,4.3239]
[1726700585658,10.54,131.72,131.7,1.4288]
[1726700585950,10.54,131.72,131.64,151.84]
[1726700585951,10.54,131.72,131.67,10.54]
[1726700586348,14.26266765,131.72,131.67,10.54]
[1726700587054,14.26266765,131.72,131.68,10.54]
[1726700587353,3.72266765,131.72,131.68,3.7963]
[1726700587659,10.54,131.72,131.68,14.3363]
[1726700587858,14.42216172,131.72,131.68,14.3363]
[1726700589859,3.88216172,131.72,131.71,10.54]
[1726700590048,10.54,131.76,131.71,10.54]
[1726700590250,14.34326566,131.76,131.71,10.54]
[1726700590450,14.34326566,131.76,131.72,14.3353]
[1726700590651,3.80326566,131.76,131.72,14.3353]
[1726700590853,14.334,131.77,131.72,14.3353]
[1726700591150,10.54,131.77,131.73,14.3348]
[1726700591355,14.32769563,131.77,131.73,14.3348]
[1726700592456,7.58159563,131.77,131.73,14.3348]
[1726700592660,18.12159563,131.77,131.73,14.3348]
[1726700596267,18.12159563,131.77,131.74,3.7947]
[1726700597966,14.32769563,131.77,131.74,3.7947]
[1726700598262,14.32769563,131.77,131.76,10.54]
[1726700598263,3.78769563,131.77,131.76,10.54]
[1726700598467,10.54,131.8,131.76,10.54]
[1726700599159,10.54,131.83,131.79,10.54]
[1726700599666,3.7919,131.84,131.8,3.7928]
[1726700599866,14.3319,131.84,131.8,3.7928]
[1726700602168,3.82138016,131.86,131.83,10.54]
[1726700602470,10.54,131.88,131.83,10.54]
[1726700602762,10.54,131.86,131.82,10.54]
[1726700603161,12.90219633,131.92,131.81,1.4391]
[1726700603361,10.54,131.86,131.82,14.3322]
[1726700603568,14.40999316,131.86,131.82,14.3322]
[1726700604165,18.20129316,131.86,131.82,14.3322]
[1726700605666,10.54,131.85,131.82,14.3322]
[1726700605876,10.54,131.85,131.82,10.54]
[1726700606180,10.54,131.85,131.81,15.7717]
[1726700607077,3.86999316,131.86,131.82,14.3324]
[1726700607277,10.54,131.89,131.85,10.54]
[1726700607574,18.19764382,131.89,131.85,10.54]
[1726700608077,7.65764382,131.89,131.85,10.54]
[1726700608370,7.65764382,131.89,131.81,2.9301]
[1726700608371,3.86704382,131.89,131.87,10.54]
[1726700608578,14.3302,131.9,131.81,2.9301]
[1726700608766,14.3302,131.9,131.86,3.7911]
[1726700609075,18.04540389,131.9,131.86,3.7911]
[1726700609666,3.71520389,131.9,131.81,2.9301]
[1726700609871,10.54,131.87,131.83,10.54]
[1726700610074,14.39023325,131.87,131.83,10.54]
[1726700610577,3.85023325,131.87,131.83,10.54]
[1726700610877,14.3309,131.88,131.83,10.54]
[1726700611079,3.791,131.87,131.83,3.7921]
[1726700611272,3.791,131.87,131.83,14.3321]
[1726700611781,14.31589124,131.88,131.84,3.7917]
[1726700612167,14.31589124,131.88,131.83,10.54]
[1726700612168,18.10679124,131.88,131.83,14.3321]
[1726700614275,18.10679124,131.88,131.84,14.3318]
[1726700614573,3.77589124,131.88,131.85,10.54]
[1726700614879,14.3305,131.89,131.85,10.54]
[1726700615082,3.7905,131.89,131.85,10.54]
[1726700615280,18.06637343,131.89,131.85,14.3315]
[1726700615680,7.52637343,131.89,131.85,14.3315]
[1726700615879,18.06637343,131.89,131.85,14.3315]
[1726700616574,3.7907,131.88,131.84,3.7917]
[1726700616775,14.3307,131.88,131.84,14.3317]
[1726700616983,14.3307,131.88,131.84,3.7917]
[1726700618277,3.7914,131.86,131.83,10.54]
[1726700618483,10.54,131.88,131.83,10.54]
[1726700618979,3.7911,131.87,131.83,14.332]
[1726700619776,10.54,131.84,131.81,1.4391]
[1726700620383,2.8502,131.88,131.79,3.7932]
[1726700620584,10.54,131.82,131.79,3.7932]
[1726700620879,14.25245918,131.82,131.79,3.7932]
[1726700621070,3.71245918,131.82,131.79,3.7932]
[1726700621275,10.54,131.82,131.79,3.7932]
[1726700621473,10.54,131.82,131.78,10.54]
[1726700621884,3.7924,131.83,131.77,1.4949]
[1726700622886,3.7924,131.83,131.78,3.7935]
[1726700624181,16.39,131.84,131.77,1.4949]
[1726700625686,3.7919,131.84,131.78,16.39]
[1726700626080,3.7919,131.84,131.79,3.7932]
[1726700626485,6.62637936,131.88,131.78,16.39]
[1726700626689,16.39,131.85,131.78,20.1834]
[1726700627081,3.7923,131.83,131.78,20.1834]
[1726700628083,3.7923,131.83,131.79,3.7933]
[1726700628886,3.792,131.84,131.79,3.7933]
[1726700629086,3.792,131.84,131.8,3.793]
[1726700629291,3.792,131.84,131.78,16.39]
[1726700629797,3.792,131.84,131.8,3.793]
[1726700630589,16.39,131.87,131.79,3.7932]
[1726700631093,3.792,131.84,131.8,3.793]
[1726700637195,3.7922,131.83,131.8,3.793]
[1726700638408,3.792,131.84,131.8,3.793]
[1726700641694,6.62637936,131.88,131.8,16.39]
[1726700641900,5.20557936,131.88,131.81,16.39]
[1726700642302,3.77617936,131.88,131.81,16.39]
[1726700642498,16.39,131.9,131.81,16.39]
[1726700642702,3.7909,131.88,131.84,3.7917]
[1726700642903,3.7890872,131.88,131.82,2.9444]
[1726700643109,16.39,131.9,131.82,2.9444]
[1726700643597,16.39,131.9,131.83,16.39]
[1726700644000,3.7906,131.89,131.86,10.48]
[1726700644201,7.56868454,131.89,131.86,10.48]
[1726700644401,18.04868454,131.89,131.85,14.2714]
[1726700646406,7.56868454,131.89,131.86,10.48]
[1726700646599,3.77808454,131.89,131.86,10.48]
[1726700646801,10.48,131.9,131.87,10.48]
[1726700647405,14.2703,131.9,131.87,10.48]
[1726700647605,14.2703,131.9,131.86,14.2712]
[1726700647806,1.3892,131.92,131.88,3.7905]
[1726700648003,10.48,131.91,131.87,10.48]
[1726700648611,14.2701,131.91,131.87,14.2708]
[1726700649109,10.48,131.9,131.87,10.48]
[1726700649313,14.2702,131.9,131.87,10.48]
[1726700650307,14.2702,131.9,131.87,14.271]
[1726700650611,10.48,131.9,131.87,14.271]
[1726700651600,14.27,131.91,131.87,14.271]
[1726700655516,3.7903,131.9,131.86,14.2712]
[1726700655721,14.2703,131.9,131.86,14.2712]
[1726700656105,1.4254,131.95,131.84,10.48]
[1726700656303,1.4254,131.95,131.87,10.48]
[1726700656618,3.7903,131.9,131.86,14.2711]
[1726700656813,10.48,131.89,131.86,14.2711]
[1726700657013,14.30984,131.89,131.86,14.2711]
[1726700657910,3.82984,131.89,131.87,3.791]
[1726700658109,10.48,131.9,131.87,3.791]
[1726700658316,3.79,131.91,131.87,3.791]
[1726700658515,10.48,131.9,131.87,3.791]
[1726700658816,3.79,131.91,131.87,14.271]
[1726700659218,14.27,131.91,131.87,14.271]
[1726700659617,14.27,131.91,131.86,14.2712]
[1726700659820,10.48,131.9,131.86,14.2712]
[1726700660320,10.48,131.9,131.82,2.9444]
[1726700660520,10.48,131.9,131.86,10.48]
[1726700661112,10.48,131.9,131.86,14.2711]
[1726700661519,10.48,131.9,131.86,10.48]
[1726700663223,10.48,131.9,131.86,14.2711]
[1726700666823,10.48,131.9,131.87,3.791]
[1726700669132,14.2701,131.91,131.87,3.791]
[1726700670926,14.2701,131.91,131.87,14.271]
[1726700672535,14.2701,131.91,131.82,2.9444]
[1726700672536,345.5723,132.05,131.82,154.6244]
[1726700672722,10.48,131.96,131.91,10.48]
[1726700673032,3.789,131.94,131.91,10.48]
[1726700673227,1.3993,132.01,131.93,10.48]
[1726700673429,10.48,131.96,131.92,10.48]
[1726700673628,14.2686,131.96,131.92,14.2694]
[1726700673926,10.48,131.96,131.92,14.2694]
[1726700674132,3.7883,131.97,131.92,14.2694]
[1726700674635,14.2683,131.97,131.92,14.2694]
[1726700674829,14.2685,131.96,131.92,14.2694]
[1726700675023,14.2685,131.96,131.92,3.7894]
[1726700677932,14.2685,131.96,131.92,14.2694]
[1726700678334,14.2685,131.96,131.92,3.7894]
[1726700679434,10.48,131.93,131.92,3.7894]
[1726700679743,10.48,131.93,131.76,175.25139936]
[1726700679941,10.48,131.86,131.82,10.48]
[1726700680134,14.36496178,131.86,131.83,3.7919]
[1726700680335,3.88496178,131.86,131.83,10.48]
[1726700680538,10.48,131.87,131.84,3.7917]
[1726700681031,3.87943031,131.86,131.84,10.48]
[1726700681239,10.48,131.89,131.84,10.48]
[1726700682837,10.48,131.89,131.86,3.7913]
[1726700686547,10.48,131.91,131.87,10.48]
[1726700687045,10.48,131.91,131.88,3.7905]
[1726700688842,10.48,131.91,131.88,10.48]
[1726700689046,10.48,131.91,131.87,10.48]
[1726700689446,10.48,131.91,131.88,3.7906]
[1726700690643,3.7897,131.92,131.88,3.7906]
[1726700690941,10.48,131.89,131.85,1.3837]
[1726700691143,10.48,131.87,131.85,1.3837]
[1726700691338,3.83447959,131.86,131.85,1.3837]
[1726700692047,3.83447959,131.86,131.85,5.1751]
[1726700692250,3.7903,131.9,131.85,15.6551]
[1726700692251,10.48,131.89,131.85,15.6551]
[1726700692649,10.48,131.88,131.85,15.6551]
[1726700693649,10.48,131.88,131.85,5.1751]
[1726700694954,10.48,131.87,131.84,3.7918]
[1726700695142,3.86873296,131.86,131.84,3.7918]
[1726700700157,10.48,131.87,131.84,3.7918]
[1726700700959,10.48,131.87,131.83,10.48]
[1726700701660,10.48,131.87,131.84,14.2716]
[1726700702351,10.48,131.87,131.85,3.7916]
[1726700703558,10.48,131.91,131.86,10.48]
[1726700703763,10.48,131.91,131.87,10.48]
[1726700704064,14.27,131.91,131.87,14.2708]
[1726700704364,10.48,131.9,131.86,10.48]
[1726700704865,10.48,131.88,131.84,10.48]
[1726700705364,14.2707,131.88,131.84,14.2716]
[1726700708263,1.4936,131.91,131.8,1.4984]
[1726700708264,10.48,131.85,131.8,1.4984]
[1726700708463,10.48,131.84,131.8,1.4984]
[1726700708666,10.48,131.84,131.8,11.9784]
[1726700709173,14.3468289,131.84,131.81,10.48]
[1726700709566,3.8668289,131.84,131.81,10.48]
[1726700709766,10.48,131.85,131.82,10.48]
[1726700710465,14.26699415,131.85,131.82,10.48]
[1726700711569,14.26699415,131.85,131.82,14.2724]
[1726700714174,3.7919,131.84,131.8,5.2913]
[1726700714374,10.48,131.83,131.8,5.2913]
[1726700714569,10.48,131.84,131.8,11.9784]
[1726700715882,10.48,131.84,131.81,3.7927]
[1726700718582,7.57879415,131.85,131.82,10.48]
[1726700718583,3.78699415,131.85,131.82,10.48]
[1726700718783,10.48,131.87,131.82,10.48]
[1726700719377,14.2712,131.87,131.83,3.792]
[1726700719683,10.48,131.86,131.83,3.792]
[1726700719883,10.48,131.86,131.8,1.4984]
[1726700719884,10.48,131.85,131.81,10.48]
[1726700720077,14.2716,131.85,131.81,14.2725]
[1726700720385,10.48,131.85,131.81,14.2725]
[1726700720577,14.25324535,131.85,131.81,14.2725]
[1726700720777,14.25324535,131.85,131.81,3.7925]
[1726700720972,14.25324535,131.85,131.81,14.2725]
[1726700721178,14.25324535,131.85,131.82,3.7924]
[1726700721680,3.77324535,131.85,131.83,3.7919]
[1726700721879,10.48,131.86,131.83,3.7919]
[1726700722271,14.18306131,131.86,131.82,10.48]
[1726700722884,10.48,131.85,131.8,1.4984]
[1726700723087,10.48,131.85,131.8,11.9784]
[1726700723585,10.48,131.85,131.81,3.7926]
[1726700723784,7.49456131,131.86,131.81,3.7926]
[1726700723785,3.70306131,131.86,131.81,3.7926]
[1726700723978,10.48,131.84,131.81,3.7926]
[1726700724183,14.30066699,131.84,131.81,3.7926]
[1726700724882,3.82066699,131.84,131.81,3.7926]
[1726700725087,10.48,131.84,131.81,3.7926]
[1726700725386,14.27069651,131.84,131.81,3.7926]
[1726700725979,3.79069651,131.84,131.83,14.2721]
[1726700726287,14.2708,131.88,131.83,14.2721]
[1726700726482,10.48,131.87,131.83,14.2721]
[1726700727184,14.2712,131.87,131.83,3.7921]
[1726700727386,10.48,131.87,131.82,14.2723]
[1726700727581,10.48,131.87,131.82,10.48]
[1726700728988,14.2711,131.87,131.83,3.7921]
[1726700729191,3.7911,131.87,131.82,10.48]
[1726700729384,10.48,131.85,131.82,3.7922]
[1726700729581,14.33755281,131.85,131.82,14.2722]
[1726700729784,14.33755281,131.85,131.82,10.48]
[1726700729985,3.85755281,131.85,131.83,10.48]
[1726700730183,10.48,131.86,131.83,10.48]
[1726700730689,14.21085179,131.86,131.83,10.48]
[1726700730892,14.21085179,131.86,131.83,14.2721]
[1726700734192,14.21085179,131.86,131.83,3.7921]
[1726700734501,14.21085179,131.86,131.82,3.7923]
[1726700734502,7.52215179,131.86,131.82,3.7923]
[1726700734687,10.48,131.83,131.8,1.4984]
[1726700734891,2.9548,131.91,131.8,1.4984]
[1726700735082,10.48,131.83,131.8,1.4984]
[1726700735288,14.32144467,131.83,131.8,1.4984]
[1726700735487,14.32144467,131.83,131.8,11.9784]
[1726700735994,14.32144467,131.83,131.81,3.7927]
[1726700736802,14.32144467,131.83,131.8,15.7713]
[1726700737092,14.32144467,131.83,131.8,5.2913]
[1726700737286,14.32144467,131.83,131.8,15.7713]
[1726700737595,3.84144467,131.83,131.8,15.7713]
[1726700737790,3.7918,131.85,131.8,15.7713]
[1726700737990,10.48,131.83,131.8,15.7713]
[1726700738197,14.32485928,131.83,131.8,15.7713]
[1726700738397,3.84485928,131.83,131.8,15.7713]
[1726700738599,10.48,131.84,131.81,3.7927]
[1726700738891,14.25172785,131.84,131.81,3.7927]
[1726700739998,14.25172785,131.84,131.81,14.2727]
[1726700742302,10.48,131.84,131.81,10.48]
[1726700742501,3.79449024,131.84,131.81,10.48]
[1726700742800,10.48,131.85,131.82,10.48]
[1726700742996,14.24565788,131.85,131.82,10.48]
[1726700743203,14.24565788,131.85,131.81,10.48]
[1726700743503,14.24565788,131.85,131.81,14.2726]
[1726700743699,18.03735788,131.85,131.81,3.7926]
[1726700743904,10.48,131.83,131.81,3.7926]
[1726700744601,7.55735788,131.85,131.81,3.7926]
[1726700744802,10.48,131.84,131.81,3.7926]
[1726700749004,10.48,131.84,131.82,3.7924]
[1726700751002,14.24565788,131.85,131.82,3.7924]
[1726700751311,10.48,131.86,131.82,10.48]
[1726700751512,14.34733729,131.86,131.82,10.48]
[1726700752410,14.34733729,131.86,131.84,3.7917]
[1726700753206,3.86733729,131.86,131.85,3.7916]
[1726700753409,10.48,131.88,131.84,10.48]
[1726700754114,14.36403138,131.88,131.84,10.48]
[1726700755413,14.36403138,131.88,131.86,3.7913]
[1726700756917,14.36403138,131.88,131.87,3.791]
[1726700761915,3.88403138,131.88,131.87,14.271]
[1726700762222,10.48,131.92,131.89,3.7901]
[1726700762423,10.48,131.91,131.87,10.48]
[1726700762721,10.48,131.9,131.86,10.48]
[1726700762918,10.48,131.9,131.88,3.7905]
[1726700763508,14.28357871,131.9,131.88,3.7905]
[1726700764123,14.28357871,131.9,131.89,3.7904]
[1726700766819,3.80357871,131.9,131.89,3.7904]
[1726700767024,10.48,131.91,131.89,3.7904]
[1726700767721,14.21664158,131.91,131.89,3.7904]
[1726700769621,14.21664158,131.91,131.9,3.7901]
[1726700770015,3.73664158,131.91,131.9,3.7901]
[1726700770218,10.48,131.92,131.9,3.7901]
[1726700770930,10.48,131.92,131.91,3.7898]
[1726700775432,10.48,131.93,131.91,3.7898]
[1726700776230,10.48,131.92,131.87,10.48]
[1726700777934,10.48,131.92,131.88,10.48]
[1726700778732,10.48,131.92,131.89,3.7904]
[1726700779625,10.48,131.92,131.9,3.7901]
[1726700781331,3.7895,131.93,131.9,3.7901]
[1726700781530,10.48,131.92,131.9,3.7901]
[1726700785234,10.48,131.91,131.89,3.7903]
[1726700785433,14.30015511,131.91,131.89,3.7903]
[1726700788229,14.30015511,131.91,131.85,1.5041]
[1726700788534,10.48,131.9,131.86,10.48]
[1726700788926,10.48,131.9,131.87,3.7908]
[1726700789327,10.48,131.89,131.85,1.5041]
[1726700789538,10.48,131.89,131.86,3.7913]
[1726700790132,10.48,131.89,131.85,5.2956]
[1726700790133,14.341864,131.89,131.85,5.2956]
[1726700790433,10.48,131.86,131.82,12.0028]
[1726700790634,14.19500899,131.86,131.82,12.0028]
[1726700790938,14.19500899,131.86,131.83,3.792]
[1726700791136,14.19500899,131.86,131.82,12.0028]
[1726700791337,10.48,131.84,131.77,2.8959]
[1726700791642,10.48,131.84,131.8,10.48]
[1726700791832,10.48,131.84,131.81,3.7927]
[1726700792034,14.28643318,131.84,131.8,10.48]
[1726700792539,14.28643318,131.84,131.81,3.7925]
[1726700792835,10.48,131.83,131.8,10.48]
[1726700793329,10.48,131.83,131.79,10.48]
[1726700793644,14.18057867,131.83,131.79,14.2731]
[1726700794338,14.18057867,131.83,131.8,3.7929]
[1726700794842,14.18057867,131.83,131.8,14.2729]
[1726700796236,14.18057867,131.83,131.8,3.7929]
[1726700796937,14.18057867,131.83,131.79,10.48]
[1726700797646,14.18057867,131.83,131.81,3.7927]
[1726700798232,14.18057867,131.83,131.8,14.273]
[1726700798834,3.70057867,131.83,131.81,10.48]
[1726700799038,1.4466,131.91,131.82,10.48]
[1726700799242,10.48,131.85,131.82,10.48]
[1726700799440,14.20078756,131.85,131.82,10.48]
[1726700799742,14.20078756,131.85,131.82,14.2722]
[1726700800231,14.20078756,131.85,131.84,3.7919]
[1726700800436,14.20078756,131.85,131.82,10.48]
[1726700800835,14.20078756,131.85,131.83,3.7921]
[1726700802733,3.72078756,131.85,131.84,3.7919]
[1726700802934,10.48,131.86,131.77,2.8959]
[1726700803246,14.23418222,131.86,131.84,3.7917]
[1726700803635,3.75418222,131.86,131.82,10.48]
[1726700803840,10.48,131.86,131.85,3.7916]
[1726700804037,14.25277083,131.86,131.85,3.7916]
[1726700804242,3.77277083,131.86,131.85,3.7916]
[1726700804539,10.48,131.89,131.87,3.791]
[1726700804741,14.30627185,131.89,131.87,3.791]
[1726700804945,14.30627185,131.89,131.85,10.48]
[1726700805140,14.30627185,131.89,131.86,10.48]
[1726700805141,3.82627185,131.89,131.86,10.48]
[1726700805346,10.48,131.9,131.88,3.7905]
[1726700805847,14.34649248,131.9,131.88,3.7905]
[1726700807145,3.86649248,131.9,131.89,3.7904]
[1726700807337,3.7897,131.92,131.82,2.8806]
[1726700807540,10.48,131.89,131.85,10.48]
[1726700807745,14.2407194,131.89,131.85,10.48]
[1726700808945,14.2407194,131.89,131.87,3.7907]
[1726700809246,14.2407194,131.89,131.85,10.48]
[1726700810741,14.2407194,131.89,131.88,3.7907]
[1726700815652,3.7607194,131.89,131.88,3.7907]
[1726700815946,10.48,131.9,131.88,3.7907]
[1726700816151,14.19586509,131.9,131.88,3.7907]
[1726700816748,14.19586509,131.9,131.89,3.7904]
[1726700822158,10.48,131.9,131.86,10.4504]
[1726700822353,14.22327668,131.9,131.86,10.4504]
[1726700823346,14.22327668,131.9,131.88,3.7905]
[1726700823946,3.74327668,131.9,131.89,3.7904]
[1726700824249,10.48,131.91,131.89,3.7904]
[1726700824752,14.22972407,131.91,131.89,3.7904]
[1726700825248,10.48,131.9,131.89,3.7904]
[1726700825959,14.27798095,131.9,131.88,3.7907]
[1726700826558,14.27798095,131.9,131.87,3.791]
[1726700831263,3.79798095,131.9,131.89,10.48]
[1726700831450,10.48,131.93,131.89,10.48]
[1726700831961,14.27760229,131.93,131.89,14.2702]
[1726700832558,10.48,131.92,131.88,3.7906]
[1726700833562,10.48,131.91,131.88,3.7906]
[1726700833759,10.48,131.91,131.87,10.48]
[1726700833966,10.48,131.91,131.84,1.4453]
[1726700834168,10.48,131.89,131.84,1.4453]
[1726700834357,10.48,131.89,131.84,11.9253]
[1726700834757,10.48,131.89,131.86,3.7913]
[1726700834952,14.2158776,131.89,131.86,3.7913]
[1726700835262,14.2158776,131.89,131.84,11.9253]
[1726700836472,14.2158776,131.89,131.85,3.7914]
[1726700836668,14.2158776,131.89,131.84,11.9253]
[1726700836669,3.7358776,131.89,131.86,10.48]
[1726700836968,10.48,131.9,131.86,14.271]
[1726700837357,14.24792602,131.9,131.86,14.271]
[1726700837558,14.24792602,131.9,131.87,3.7909]
[1726700837768,3.76792602,131.9,131.88,10.48]
[1726700837964,10.48,131.92,131.89,10.48]
[1726700838167,14.2502018,131.92,131.89,14.2704]
[1726700838372,14.2502018,131.92,131.89,3.7904]
[1726700838669,3.7702018,131.92,131.89,3.7904]
[1726700838865,10.48,131.92,131.89,3.7904]
[1726700839071,14.28869138,131.92,131.89,3.7904]
[1726700839969,3.80869138,131.92,131.89,3.7904]
[1726700840171,10.48,131.92,131.89,3.7904]
[1726700840367,14.3076533,131.92,131.89,3.7904]
[1726700840574,14.3076533,131.92,131.88,14.2706]
[1726700841277,3.8276533,131.92,131.88,14.2706]
[1726700841576,3.7893,131.93,131.88,3.7906]
[1726700841778,10.48,131.91,131.88,3.7906]
[1726700842574,10.48,131.91,131.88,14.2706]
[1726700843580,10.48,131.92,131.88,14.2706]